bitfinex/quotes_BTCUSD_20220120
["timestamp","ask_amount","ask_price","bid_price","bid_amount"]
[1642646757156,0.85156863,42009.0,42008.0,0.00249874]
[1642646757359,0.64093978,42009.0,42008.0,0.00249874]
[1642646757757,0.62693978,42009.0,42008.0,0.00249874]
[1642646758158,0.059536,42007.0,42003.0,0.0011304]
[1642646758362,0.059536,42007.0,42001.0,0.00643013]
[1642646758363,0.65103542,42005.0,42001.0,0.00643013]
[1642646758559,0.384456,42004.0,42003.0,0.0011304]
[1642646758758,0.43069789,42004.0,42003.0,0.0011304]
[1642646758962,0.57693978,42004.0,42003.0,0.00123354]
[1642646759462,0.63647778,42004.0,42003.0,0.00123354]
[1642646759658,0.63647778,42004.0,42003.0,0.00010314]
[1642646760059,0.63647778,42004.0,42002.0,0.00012033]
[1642646760318,0.84890859,42004.0,42002.0,0.00012033]
[1642646760513,0.384456,42003.0,42002.0,0.00012033]
[1642646760913,0.534456,42003.0,42001.0,0.0011304]
[1642646761113,0.059544,42002.0,42001.0,0.0011304]
[1642646761413,0.444,42002.0,42001.0,0.0011304]
[1642646761613,0.544,42002.0,42001.0,0.0011304]
[1642646762115,0.544,42002.0,42000.0,0.00437874]
[1642646762512,0.558,42002.0,42000.0,0.00437874]
[1642646762713,0.498456,42002.0,42000.0,0.00437874]
[1642646762914,0.398456,42002.0,42000.0,0.00437874]
[1642646763115,0.498456,42002.0,42000.0,0.00437874]
[1642646763913,0.484456,42002.0,42000.0,0.00437874]
[1642646764152,0.09925456,42001.0,42000.0,0.00437874]
[1642646764353,0.48371056,42001.0,42000.0,0.00437874]
[1642646764555,0.68161056,42001.0,42000.0,0.00437874]
[1642646764953,0.96312172,42001.0,42000.0,0.00437874]
[1642646765152,0.96312172,42001.0,41992.0,0.00452249]
[1642646765153,0.9,42000.0,41992.0,0.00452249]
[1642646765354,0.00124846,41994.0,41992.0,0.00452249]
[1642646765555,0.67294297,41994.0,41993.0,0.00015471]
[1642646765755,1.58531608,41994.0,41993.0,0.00015471]
[1642646765954,0.059552,41993.0,41992.0,0.0001719]
[1642646766154,0.491908,41993.0,41992.0,0.0001719]
[1642646766354,0.541908,41993.0,41992.0,0.0001719]
[1642646766553,0.65116378,41993.0,41992.0,0.0001719]
[1642646767357,0.70116378,41993.0,41992.0,0.0001719]
[1642646767804,1.020543,41993.0,41992.0,0.0001719]
[1642646768609,1.031543,41993.0,41992.0,0.0001719]
[1642646769208,0.971991,41993.0,41992.0,0.0001719]
[1642646769408,1.0482144,41993.0,41992.0,0.0001719]
[1642646769608,1.09445629,41993.0,41992.0,0.0001719]
[1642646769810,0.75607707,41993.0,41992.0,0.0001719]
[1642646770410,0.57861589,41993.0,41992.0,0.0001719]
[1642646770612,0.58961589,41993.0,41992.0,0.0001719]
[1642646771560,0.42384025,41993.0,41992.0,0.0001719]
[1642646771762,0.351,41993.0,41992.0,0.0001719]
[1642646771963,0.251,41993.0,41992.0,0.0001719]
[1642646772361,0.24,41993.0,41992.0,0.0001719]
[1642646772565,0.25,41993.0,41992.0,0.0001719]
[1642646773161,0.2979,41993.0,41992.0,0.0001719]
[1642646773762,0.55681496,41993.0,41992.0,0.0001719]
[1642646773963,0.55436021,41993.0,41992.0,0.0001719]
[1642646774163,0.2879,41993.0,41992.0,0.0001719]
[1642646774764,0.3039,41993.0,41992.0,0.0001719]
[1642646775169,0.56646892,41993.0,41992.0,0.0001719]
[1642646776011,0.55046892,41993.0,41992.0,0.0001719]
[1642646776412,0.60046892,41993.0,41992.0,0.0001719]
[1642646776813,0.61046892,41993.0,41992.0,0.0001719]
[1642646777212,0.2979,41993.0,41992.0,0.0001719]
[1642646777414,0.3479,41993.0,41992.0,0.0001719]
[1642646778311,0.2979,41993.0,41992.0,0.0001719]
[1642646778512,0.2879,41993.0,41992.0,0.0001719]
[1642646778911,0.2979,41993.0,41992.0,0.0001719]
[1642646779166,0.25,41993.0,41992.0,0.0001719]
[1642646780371,0.24,41993.0,41992.0,0.0001719]
[1642646780765,0.24,41993.0,41992.0,0.0051719]
[1642646781167,0.279,41993.0,41992.0,0.0051719]
[1642646782469,0.279,41993.0,41992.0,0.32500296]
[1642646782669,0.279,41993.0,41992.0,0.70973696]
[1642646782924,0.283,41993.0,41992.0,0.77627333]
[1642646783119,0.283,41993.0,41992.0,0.82627333]
[1642646783321,0.283,41993.0,41992.0,1.82627333]
[1642646783521,0.283,41993.0,41992.0,1.82747711]
[1642646783720,0.283,41993.0,41992.0,0.86794903]
[1642646784222,0.283,41993.0,41992.0,1.31794903]
[1642646784822,0.283,41993.0,41992.0,1.38494903]
[1642646785021,0.24,41993.0,41992.0,1.37794903]
[1642646786424,0.24,41993.0,41992.0,1.43747408]
[1642646786659,0.00073656,42005.0,41993.0,0.95]
[1642646786860,0.00073656,42005.0,41998.0,0.00128662]
[1642646787058,0.00073656,42005.0,41999.0,0.384734]
[1642646787259,0.9954,42009.0,41999.0,0.47498407]
[1642646787459,0.00073674,42005.0,42004.0,0.5954515]
[1642646788458,0.00010314,42008.0,42004.0,0.5954515]
[1642646788657,0.00073615,42007.0,42004.0,0.5954515]
[1642646788858,0.0008221,42007.0,42004.0,0.6454515]
[1642646789057,0.001,42005.0,42004.0,0.7974515]
[1642646789257,0.001,42005.0,42004.0,0.47207568]
[1642646789660,0.001,42005.0,42004.0,0.052]
[1642646790306,6.876e-05,42006.0,41998.0,0.04918662]
[1642646790505,6.876e-05,42006.0,41999.0,0.434734]
[1642646790714,6.876e-05,42006.0,41999.0,0.71902539]
[1642646790907,6.876e-05,42006.0,41999.0,0.81902539]
[1642646791110,0.0007361,42005.0,41999.0,0.81902539]
[1642646791706,0.0007361,42005.0,41999.0,0.71902539]
[1642646791905,0.24006876,42006.0,41999.0,0.71902539]
[1642646792105,6.876e-05,42006.0,41999.0,0.71902539]
[1642646792307,0.00073621,42005.0,41999.0,0.71902539]
[1642646792507,0.00073621,42005.0,41999.0,0.66902539]
[1642646793109,0.004,42005.0,41999.0,0.72002539]
[1642646793510,0.00473621,42005.0,41999.0,0.72002539]
[1642646794357,0.004,42005.0,41999.0,0.72002539]
[1642646794556,0.00473621,42005.0,41999.0,0.72002539]
[1642646795457,0.00473621,42005.0,41999.0,0.77202539]
[1642646795658,0.004,42005.0,42000.0,0.0479]
[1642646795862,0.0047362,42005.0,42001.0,0.384734]
[1642646796058,0.0007362,42005.0,42001.0,0.384734]
[1642646796858,6.876e-05,42006.0,42001.0,0.384734]
[1642646797059,0.00073623,42005.0,42001.0,0.437734]
[1642646798105,6.876e-05,42006.0,42001.0,0.437734]
[1642646798306,0.00073623,42005.0,42001.0,0.44424608]
[1642646799106,0.00073623,42005.0,42001.0,0.50024608]
[1642646799308,6.876e-05,42006.0,42001.0,0.50024608]
[1642646799309,6.876e-05,42006.0,42001.0,0.440734]
[1642646799507,0.00073623,42005.0,42001.0,0.440734]
[1642646800307,0.00073623,42005.0,42001.0,0.384734]
[1642646800508,6.876e-05,42006.0,42001.0,0.384734]
[1642646800708,0.00073623,42005.0,42001.0,0.384734]
[1642646801110,0.00073623,42005.0,42001.0,0.437734]
[1642646801551,6.876e-05,42006.0,42001.0,0.437734]
[1642646801756,0.00073623,42005.0,42001.0,0.427734]
[1642646802355,0.00073623,42005.0,42001.0,0.374734]
[1642646802755,6.876e-05,42006.0,42001.0,0.374734]
[1642646802953,0.00073623,42005.0,42001.0,0.374734]
[1642646803252,0.00073623,42005.0,42001.0,0.430734]
[1642646804054,6.876e-05,42006.0,42001.0,0.430734]
[1642646804353,0.00073623,42005.0,41999.0,0.28429139]
[1642646804555,0.00073623,42005.0,42000.0,0.384637]
[1642646805155,6.876e-05,42006.0,42000.0,0.437637]
[1642646805410,0.00073621,42005.0,42000.0,0.053]
[1642646806411,6.876e-05,42006.0,41999.0,0.28429139]
[1642646806610,0.00073621,42005.0,41999.0,0.28429139]
[1642646807211,0.00073621,42005.0,41999.0,0.33429139]
[1642646807411,0.00073621,42005.0,42000.0,0.384637]
[1642646807611,0.00506876,42006.0,42000.0,0.384637]
[1642646807813,0.0007362,42005.0,41999.0,0.33429139]
[1642646808011,0.0007362,42005.0,42000.0,0.384637]
[1642646808815,6.876e-05,42006.0,42000.0,0.384637]
[1642646809058,0.00073621,42005.0,42000.0,0.053]
[1642646809959,6.876e-05,42006.0,42000.0,0.053]
[1642646810159,0.00073622,42005.0,42000.0,0.053]
[1642646810360,0.00073622,42005.0,42000.0,0.47652912]
[1642646810759,0.00073622,42005.0,41999.0,0.28429139]
[1642646810959,0.00073622,42005.0,42000.0,0.41681402]
[1642646811160,6.876e-05,42006.0,42000.0,0.46981402]
[1642646811367,0.00473621,42005.0,42000.0,0.46981402]
[1642646811563,0.00473621,42005.0,42003.0,0.00122655]
[1642646811864,0.00473621,42005.0,42004.0,1.034637]
[1642646812462,6.876e-05,42006.0,42004.0,1.32850961]
[1642646812665,6.876e-05,42006.0,42004.0,1.32350961]
[1642646813105,0.00206876,42006.0,42004.0,1.37350961]
[1642646813906,0.00206876,42006.0,42004.0,0.72350961]
[1642646814105,0.00206876,42006.0,42004.0,0.34387261]
[1642646815103,6.876e-05,42006.0,42004.0,0.34887261]
[1642646816307,6.876e-05,42006.0,42004.0,0.29387261]
[1642646817158,0.00406876,42006.0,42004.0,0.34787261]
[1642646817358,0.00406876,42006.0,42005.0,0.384624]
[1642646817858,0.00406876,42006.0,42004.0,0.34787261]
[1642646818458,6.876e-05,42006.0,42004.0,0.29387261]
[1642646819062,0.00406876,42006.0,42004.0,0.34787261]
[1642646819259,0.00406876,42006.0,42004.0,0.054]
[1642646820427,0.00406876,42006.0,42005.0,0.62478632]
[1642646820621,6.876e-05,42006.0,42005.0,0.62478632]
[1642646821222,0.00606876,42006.0,42005.0,0.67078632]
[1642646821421,0.00606876,42006.0,42005.0,1.05541032]
[1642646821625,0.00606876,42006.0,42005.0,0.75541032]
[1642646821822,0.00606876,42006.0,42005.0,0.37078632]
[1642646823022,6.876e-05,42006.0,42005.0,0.32478632]
[1642646823222,0.00606876,42006.0,42005.0,0.36878632]
[1642646824361,6.876e-05,42006.0,42005.0,0.32478632]
[1642646825163,0.00606876,42006.0,42005.0,0.36978632]
[1642646826363,6.876e-05,42006.0,42005.0,0.32478632]
[1642646827162,0.00606876,42006.0,42005.0,0.37078632]
[1642646828011,0.00606876,42006.0,42005.0,0.046]
[1642646828912,0.00606876,42006.0,42000.0,0.41681402]
[1642646828913,6.876e-05,42006.0,42000.0,0.41681402]
[1642646829216,0.33026473,42005.0,42000.0,0.41681402]
[1642646830413,0.17575085,42002.0,42000.0,0.41681402]
[1642646831113,0.18475085,42002.0,42000.0,0.43481402]
[1642646832360,0.18475085,42002.0,42000.0,0.41681402]
[1642646832361,0.17575085,42002.0,42000.0,0.41681402]
[1642646832764,0.05,42002.0,42000.0,0.41681402]
[1642646833163,0.05,42002.0,42000.0,0.42881402]
[1642646833164,0.007,42002.0,42000.0,0.42881402]
[1642646834163,0.007,42002.0,42000.0,0.42874432]
[1642646834365,0.05,42004.0,42000.0,0.41674432]
[1642646835167,0.059,42004.0,42000.0,0.42674432]
[1642646836411,0.05,42004.0,42000.0,0.41674432]
[1642646837211,0.056,42004.0,42000.0,0.42974432]
[1642646838511,0.05,42004.0,42000.0,0.41674432]
[1642646839163,0.056,42004.0,42000.0,0.42674432]
[1642646840365,0.06451374,42005.0,42000.0,0.41674432]
[1642646840968,0.06451374,42005.0,42000.0,0.74173745]
[1642646841169,0.039,42005.0,42001.0,0.6361382]
[1642646841374,0.03973622,42005.0,42001.0,0.2515142]
[1642646841767,0.03973622,42005.0,42002.0,0.63196591]
[1642646842270,0.03973622,42005.0,42002.0,0.384624]
[1642646842472,0.03973622,42005.0,42001.0,0.0012132]
[1642646842473,0.03,42005.0,42001.0,0.0012132]
[1642646843112,0.27,42005.0,42002.0,0.384624]
[1642646843311,0.27,42005.0,42001.0,0.0092132]
[1642646844411,0.27,42005.0,42001.0,0.0012132]
[1642646845116,0.27073623,42005.0,42001.0,0.0102132]
[1642646845713,0.25073623,42005.0,42001.0,0.0102132]
[1642646845913,0.25,42005.0,42001.0,0.0102132]
[1642646846115,0.25,42005.0,42002.0,0.384624]
[1642646846314,0.25073622,42005.0,42002.0,0.384624]
[1642646847160,0.25,42005.0,42002.0,0.393624]
[1642646847770,0.25,42005.0,42003.0,0.00129318]
[1642646847963,0.25,42005.0,42004.0,1.284624]
[1642646848164,0.25,42005.0,42004.0,1.482524]
[1642646848361,0.25,42005.0,42004.0,2.08604422]
[1642646848862,0.25,42005.0,42004.0,2.20762113]
[1642646849262,0.25,42005.0,42004.0,1.511524]
[1642646849462,0.25,42005.0,42004.0,2.11504422]
[1642646849664,0.25,42005.0,42004.0,2.23662005]
[1642646850062,0.25,42005.0,42004.0,1.63309983]
[1642646850515,0.25,42005.0,42004.0,1.60409983]
[1642646851319,0.25,42005.0,42004.0,1.63009983]
[1642646851524,0.25,42005.0,42004.0,2.23362005]
[1642646851720,0.25,42005.0,42004.0,1.63009983]
[1642646852120,0.25,42005.0,42004.0,1.508524]
[1642646852519,0.25,42005.0,42004.0,1.482524]
[1642646853320,0.25,42005.0,42004.0,1.507524]
[1642646853923,0.25,42005.0,42004.0,0.607524]
[1642646854164,0.25,42005.0,42004.0,0.87034559]
[1642646854360,0.25,42005.0,42004.0,0.84534559]
[1642646855363,0.25,42005.0,42004.0,0.87134559]
[1642646856563,0.25,42005.0,42004.0,0.84534559]
[1642646857163,0.25,42005.0,42004.0,0.87234559]
[1642646858417,0.25,42005.0,42004.0,0.84534559]
[1642646859218,0.25,42005.0,42004.0,0.87334559]
[1642646860017,0.25,42005.0,42004.0,0.82334559]
[1642646860219,0.25,42005.0,42004.0,0.87334559]
[1642646860519,0.25,42005.0,42004.0,0.84534559]
[1642646861321,0.25,42005.0,42004.0,0.87534559]
[1642646861765,6.876e-05,42006.0,42005.0,0.95122988]
[1642646861963,0.00073428,42007.0,42005.0,0.95122988]
[1642646861964,4.28e-06,42007.0,42006.0,1.647624]
[1642646862164,0.27673593,42027.0,42010.0,0.059491]
[1642646862364,0.27673593,42027.0,42022.0,0.00120682]
[1642646862567,0.00030942,42024.0,42020.0,0.00129087]
[1642646862965,0.27380022,42027.0,42020.0,0.00129087]
[1642646862966,0.00029223,42023.0,42020.0,0.00129087]
[1642646863367,0.00027504,42022.0,42020.0,0.01729087]
[1642646863564,0.00027504,42022.0,42020.0,0.016]
[1642646863766,0.33186851,42026.0,42020.0,0.016]
[1642646863767,0.00025785,42021.0,42020.0,0.016]
[1642646864566,0.00025785,42021.0,42015.0,0.0979]
[1642646864866,0.00024066,42020.0,42015.0,0.0479]
[1642646865312,0.00022347,42019.0,42015.0,0.0829]
[1642646865711,0.00020628,42018.0,42015.0,0.0829]
[1642646865915,0.00020628,42018.0,42016.0,0.384624]
[1642646866112,0.00018909,42017.0,42016.0,0.434624]
[1642646866312,0.00018909,42017.0,42016.0,0.734624]
[1642646866915,0.00018909,42017.0,42016.0,0.434624]
[1642646867315,0.00018909,42017.0,42016.0,0.503624]
[1642646868517,0.00018909,42017.0,42016.0,0.434624]
[1642646869364,0.00018909,42017.0,42016.0,0.448624]
[1642646869564,0.00018909,42017.0,42016.0,0.064]
[1642646870563,0.00018909,42017.0,42013.0,0.3482525]
[1642646870963,0.0001719,42016.0,42013.0,0.3482525]
[1642646871270,0.00015471,42015.0,42014.0,0.384624]
[1642646871765,0.00015471,42015.0,42013.0,0.4072525]
[1642646871766,0.00015471,42015.0,42013.0,0.07964586]
[1642646871964,0.00015471,42015.0,42014.0,0.384541]
[1642646872165,0.00013752,42014.0,42013.0,0.059]
[1642646872365,0.00015471,42015.0,42013.0,0.443541]
[1642646872665,0.00013752,42014.0,42013.0,0.384541]
[1642646873321,0.00013752,42014.0,42013.0,0.404541]
[1642646874721,0.00013752,42014.0,42013.0,0.384541]
[1642646875323,0.00013752,42014.0,42013.0,0.401541]
[1642646876566,0.00013752,42014.0,42013.0,0.384541]
[1642646876767,0.00013752,42014.0,42008.0,0.00126061]
[1642646876963,0.00013752,42014.0,42009.0,0.384541]
[1642646877165,0.00012033,42013.0,42009.0,0.384541]
[1642646877364,0.00091488,42013.0,42010.0,0.30359094]
[1642646877564,0.00010314,42012.0,42011.0,0.384541]
[1642646879266,0.00010314,42012.0,42011.0,0.410541]
[1642646880516,0.00010314,42012.0,42011.0,0.384541]
[1642646881319,0.00010314,42012.0,42011.0,0.390541]
[1642646882618,0.00010314,42012.0,42011.0,0.384541]
[1642646883221,0.00010314,42012.0,42011.0,0.984541]
[1642646883420,0.00010314,42012.0,42011.0,1.031541]
[1642646883821,0.00010314,42012.0,42011.0,1.081541]
[1642646884471,0.00010314,42012.0,42011.0,1.034541]
[1642646885273,0.00010314,42012.0,42011.0,1.091541]
[1642646885673,0.00010314,42012.0,42011.0,0.491541]
[1642646886678,0.00010314,42012.0,42011.0,0.434541]
[1642646887277,0.00010314,42012.0,42011.0,0.490541]
[1642646888512,0.00010314,42012.0,42011.0,0.434541]
[1642646889313,0.00010314,42012.0,42011.0,0.493541]
[1642646889517,0.00079409,42014.0,42011.0,0.493541]
[1642646890517,0.00013752,42020.0,42012.0,0.31788685]
[1642646890716,0.0007941,42015.0,42012.0,0.31788685]
[1642646891115,0.0007941,42015.0,42013.0,0.384541]
[1642646891324,0.0007941,42015.0,42012.0,0.36288685]
[1642646891569,0.00012033,42019.0,42012.0,0.36288685]
[1642646891769,0.00079411,42016.0,42012.0,0.36288685]
[1642646892574,0.00079411,42016.0,42008.0,0.95865432]
[1642646892772,0.00010314,42018.0,42008.0,0.95865432]
[1642646892974,0.0007941,42016.0,42009.0,0.6051317]
[1642646893170,0.0007941,42016.0,42008.0,0.95865432]
[1642646893371,0.0007941,42016.0,42008.0,0.96565432]
[1642646893671,0.0007941,42016.0,42009.0,0.27313473]
[1642646894071,8.595e-05,42017.0,42009.0,0.27313473]
[1642646894272,0.00079408,42015.0,42009.0,0.27313473]
[1642646895172,6.876e-05,42016.0,42009.0,0.27313473]
[1642646895420,0.00079408,42014.0,42009.0,0.27613473]
[1642646896419,6.876e-05,42016.0,42009.0,0.27613473]
[1642646896719,0.00079408,42014.0,42009.0,0.27313473]
[1642646897321,0.00079408,42014.0,42009.0,0.27913473]
[1642646897720,6.876e-05,42016.0,42009.0,0.27913473]
[1642646898019,0.00079408,42014.0,42009.0,0.27913473]
[1642646898220,0.00079408,42014.0,42010.0,0.384541]
[1642646898822,6.876e-05,42016.0,42010.0,0.384541]
[1642646899067,0.00079408,42014.0,42009.0,0.27313473]
[1642646899267,0.00079408,42014.0,42010.0,0.001]
[1642646900067,6.876e-05,42016.0,42010.0,0.001]
[1642646900267,0.00079409,42014.0,42010.0,0.001]
[1642646900668,0.00079409,42014.0,42009.0,0.88000226]
[1642646901268,6.876e-05,42016.0,42009.0,0.88000226]
[1642646901468,0.00079408,42014.0,42009.0,0.88600226]
[1642646902472,6.876e-05,42016.0,42009.0,0.88000226]
[1642646902672,0.00079408,42014.0,42009.0,0.88000226]
[1642646903319,0.00079408,42014.0,42009.0,0.88600226]
[1642646903721,6.876e-05,42016.0,42009.0,0.88600226]
[1642646903922,0.00079408,42014.0,42009.0,0.88600226]
[1642646904321,0.00079408,42014.0,42009.0,0.61286753]
[1642646904523,0.00079408,42014.0,42009.0,0.006]
[1642646904720,0.00079408,42014.0,42008.0,0.60812814]
[1642646904919,6.876e-05,42016.0,42008.0,0.60812814]
[1642646905122,0.00079408,42014.0,42008.0,0.00126061]
[1642646905320,0.00279408,42014.0,42008.0,0.00726061]
[1642646905521,0.00279408,42014.0,42008.0,0.006]
[1642646906224,0.00079408,42013.0,42009.0,0.384541]
[1642646906425,0.00079408,42013.0,42009.0,0.94200853]
[1642646906675,0.00079408,42013.0,42009.0,0.335141]
[1642646907274,6.876e-05,42016.0,42009.0,0.335141]
[1642646907475,0.03879408,42013.0,42008.0,0.60686753]
[1642646907777,0.03879408,42013.0,42009.0,0.384556]
[1642646908374,0.038,42013.0,42009.0,0.384556]
[1642646908576,0.00079408,42013.0,42009.0,0.384556]
[1642646909176,0.00079408,42013.0,42010.0,0.24715736]
[1642646909376,0.00079408,42013.0,42011.0,0.384556]
[1642646909377,0.03879408,42013.0,42011.0,0.384556]
[1642646909576,0.038,42013.0,42011.0,0.384556]
[1642646910619,0.00079408,42014.0,42011.0,0.384556]
[1642646910817,6.876e-05,42016.0,42011.0,0.384556]
[1642646911016,0.00079409,42014.0,42009.0,0.60686753]
[1642646911217,0.00079409,42014.0,42010.0,0.384556]
[1642646911418,0.00079409,42014.0,42011.0,0.002]
[1642646912118,0.03306876,42016.0,42011.0,0.002]
[1642646912319,0.0007941,42015.0,42011.0,0.002]
[1642646912818,0.0007941,42015.0,42012.0,0.34323984]
[1642646913219,6.876e-05,42016.0,42012.0,0.34323984]
[1642646913519,0.022,42015.0,42012.0,0.34323984]
[1642646914596,6.876e-05,42016.0,42012.0,0.34323984]
[1642646914597,0.00086286,42016.0,42012.0,0.34323984]
[1642646915598,6.876e-05,42016.0,42012.0,0.34323984]
[1642646915794,0.00086286,42016.0,42012.0,0.34323984]
[1642646916696,0.00086286,42016.0,42009.0,0.60686753]
[1642646916896,6.876e-05,42016.0,42008.0,0.60686753]
[1642646917097,0.00086286,42016.0,42008.0,0.60686753]
[1642646917297,0.00086286,42016.0,42009.0,0.60686753]
[1642646917496,0.00086286,42016.0,42008.0,0.61586753]
[1642646917697,0.00086286,42016.0,42008.0,0.88536925]
[1642646917930,0.00086286,42016.0,42009.0,0.60686753]
[1642646918130,6.876e-05,42016.0,42009.0,0.60686753]
[1642646918328,0.00079407,42014.0,42009.0,0.60686753]
[1642646919227,6.876e-05,42016.0,42009.0,0.60686753]
[1642646919428,0.00079407,42014.0,42009.0,0.61986753]
[1642646919630,0.00079407,42014.0,42009.0,0.013]
[1642646920629,0.00079407,42014.0,42010.0,0.60742457]
[1642646921428,0.00079407,42014.0,42010.0,0.61642457]
[1642646921676,6.876e-05,42016.0,42010.0,0.61642457]
[1642646921875,0.00079409,42014.0,42010.0,0.61642457]
[1642646922678,0.00079409,42014.0,42010.0,0.60742457]
[1642646922876,6.876e-05,42016.0,42009.0,0.60742457]
[1642646923076,0.00079409,42014.0,42009.0,0.60742457]
[1642646923579,0.00079409,42014.0,42009.0,0.009]
[1642646923778,0.00079409,42014.0,42009.0,0.61642457]
[1642646923977,6.876e-05,42016.0,42010.0,0.60742457]
[1642646924277,0.00079409,42014.0,42010.0,0.60742457]
[1642646924878,0.00079409,42014.0,42009.0,0.60742457]
[1642646925328,6.876e-05,42016.0,42009.0,0.60742457]
[1642646925528,0.00079408,42014.0,42009.0,0.60942457]
[1642646926429,6.876e-05,42016.0,42010.0,0.99198057]
[1642646926629,0.00079408,42014.0,42010.0,0.60742457]
[1642646927430,0.00079408,42014.0,42010.0,0.61642457]
[1642646927628,6.876e-05,42016.0,42010.0,0.61642457]
[1642646927829,0.00079408,42014.0,42010.0,0.61642457]
[1642646928428,0.00079408,42014.0,42011.0,0.384556]
[1642646928930,6.876e-05,42016.0,42011.0,0.384556]
[1642646929181,0.00072344,42015.0,42010.0,0.60742457]
[1642646929880,0.00072344,42015.0,42014.0,0.28954634]
[1642646930081,6.876e-05,42016.0,42014.0,0.28954634]
[1642646931983,6.876e-05,42016.0,42011.0,0.60742457]
[1642646932183,6.876e-05,42016.0,42010.0,0.60742457]
[1642646932582,0.00060522,42016.0,42010.0,0.60742457]
[1642646933028,0.00060522,42016.0,42010.0,0.87929132]
[1642646933428,0.00060522,42016.0,42010.0,0.88329132]
[1642646933630,6.876e-05,42016.0,42010.0,0.88329132]
[1642646933833,0.00094941,42015.0,42010.0,0.88329132]
[1642646934830,6.876e-05,42016.0,42010.0,0.87929132]
[1642646935030,0.0009494,42015.0,42010.0,0.87929132]
[1642646935230,0.0009494,42015.0,42010.0,0.27186675]
[1642646935430,0.0009494,42015.0,42010.0,0.27786675]
[1642646936033,6.876e-05,42016.0,42010.0,0.88569015]
[1642646936234,0.0009494,42015.0,42010.0,0.88569015]
[1642646936671,0.0009494,42015.0,42010.0,0.87969015]
[1642646937172,6.876e-05,42016.0,42010.0,0.87969015]
[1642646937372,0.0009494,42015.0,42010.0,0.87969015]
[1642646937575,0.0009494,42015.0,42010.0,0.88569015]
[1642646938372,6.876e-05,42016.0,42010.0,0.88569015]
[1642646938572,0.0009494,42015.0,42010.0,0.88569015]
[1642646938773,0.0009494,42015.0,42010.0,0.87969015]
[1642646939374,0.0009494,42015.0,42011.0,0.384556]
[1642646939577,6.876e-05,42016.0,42013.0,0.6078234]
[1642646939776,6.876e-05,42016.0,42014.0,1.29202]
[1642646940075,0.0009494,42015.0,42014.0,1.11394669]
[1642646940334,0.0009494,42015.0,42014.0,0.50611756]
[1642646940533,0.95887847,42028.0,42021.0,0.30752959]
[1642646940834,0.30095196,42031.0,42021.0,0.30752959]
[1642646940835,0.00015471,42025.0,42021.0,0.30752959]
[1642646941234,0.00013752,42024.0,42021.0,0.30752959]
[1642646941638,0.00012033,42023.0,42021.0,0.30752959]
[1642646942036,0.00010314,42022.0,42021.0,0.30752959]
[1642646943537,0.00010314,42022.0,42021.0,0.30952959]
[1642646943737,0.00010314,42022.0,42021.0,0.002]
[1642646944685,0.38465914,42022.0,42021.0,0.002]
[1642646944886,0.38465914,42022.0,42014.0,0.32492173]
[1642646945087,0.34571169,42022.0,42014.0,0.32492173]
[1642646945286,8.595e-05,42021.0,42014.0,0.32492173]
[1642646945592,6.876e-05,42020.0,42014.0,0.35392173]
[1642646945887,0.00094108,42020.0,42014.0,0.35392173]
[1642646946888,0.34041243,42022.0,42014.0,0.32492173]
[1642646947088,0.00094107,42019.0,42014.0,0.32492173]
[1642646947487,0.00094107,42019.0,42014.0,0.007]
[1642646948928,0.00094107,42019.0,42012.0,0.30884269]
[1642646949233,0.57192369,42021.0,42012.0,0.30884269]
[1642646949234,0.20959995,42021.0,42012.0,0.30884269]
[1642646949428,0.00094107,42019.0,42012.0,0.30884269]
[1642646950229,0.00094107,42019.0,42012.0,0.00126059]
[1642646950429,6.876e-05,42020.0,42012.0,0.00126059]
[1642646950627,0.00094105,42018.0,42012.0,0.00126059]
[1642646951030,0.00094105,42018.0,42013.0,0.384556]
[1642646951231,0.00094105,42018.0,42014.0,0.27798075]
[1642646951705,6.876e-05,42020.0,42017.0,0.29270005]
[1642646951885,0.00094106,42018.0,42017.0,0.29270005]
[1642646952883,6.876e-05,42020.0,42017.0,0.29270005]
[1642646953085,0.00100984,42020.0,42017.0,0.29270005]
[1642646953583,0.27418647,42024.0,42020.0,6.332e-05]
[1642646953784,0.3842878,42023.0,42020.0,6.332e-05]
[1642646954386,1.363203,42029.0,42020.0,6.332e-05]
[1642646954387,1.3037,42029.0,42020.0,6.332e-05]
[1642646954784,6.876e-05,42024.0,42020.0,6.332e-05]
[1642646955184,6.876e-05,42024.0,42018.0,0.34154343]
[1642646956728,0.00053207,42023.0,42018.0,0.34154343]
[1642646957831,0.00093284,42023.0,42018.0,0.34154343]
[1642646958431,0.00093284,42023.0,42020.0,0.0002958]
[1642646958833,6.876e-05,42024.0,42020.0,0.0002958]
[1642646959077,0.00100161,42024.0,42020.0,0.0002958]
[1642646959277,0.384495,42023.0,42020.0,0.0002958]
[1642646960082,6.876e-05,42024.0,42020.0,0.0002958]
[1642646960284,0.00100161,42024.0,42020.0,0.0002958]
[1642646960480,0.00100161,42024.0,42023.0,0.00122289]
[1642646960684,0.00100161,42024.0,42023.0,0.93571789]
[1642646960879,0.00100161,42024.0,42023.0,1.2660328]
[1642646961079,0.00100161,42024.0,42023.0,1.3160328]
[1642646961280,6.876e-05,42024.0,42023.0,0.7660328]
[1642646961482,6.876e-05,42024.0,42023.0,0.7730328]
[1642646962081,6.876e-05,42024.0,42023.0,0.7660328]
[1642646962679,6.876e-05,42024.0,42023.0,0.6660328]
[1642646963529,6.876e-05,42024.0,42023.0,0.70332789]
[1642646965229,6.876e-05,42024.0,42023.0,0.66632789]
[1642646965628,6.876e-05,42024.0,42023.0,0.70332789]
[1642646967080,6.876e-05,42024.0,42023.0,0.66632789]
[1642646967680,6.876e-05,42024.0,42023.0,0.67632789]
[1642646969483,6.876e-05,42024.0,42023.0,0.66632789]
[1642646969682,6.876e-05,42024.0,42023.0,0.67732789]
[1642646969882,6.876e-05,42024.0,42023.0,0.67238789]
[1642646970087,0.16600164,42030.0,42023.0,0.01129509]
[1642646970527,0.6365042,42029.0,42023.0,0.01129509]
[1642646970931,6.876e-05,42028.0,42023.0,0.01129509]
[1642646971234,0.068012,42027.0,42023.0,0.00029509]
[1642646972735,0.25587573,42026.0,42023.0,0.00029509]
[1642646972931,0.384482,42025.0,42023.0,0.00029509]
[1642646973131,0.25056249,42024.0,42023.0,0.00029509]
[1642646973333,0.31857449,42024.0,42023.0,0.00029509]
[1642646973531,0.068012,42024.0,42019.0,0.00121171]
[1642646973732,0.22191332,42026.0,42019.0,0.00121171]
[1642646973930,0.012,42024.0,42020.0,6.876e-05]
[1642646974888,0.012,42024.0,42019.0,0.00129763]
[1642646975587,0.012,42024.0,42019.0,8.595e-05]
[1642646975790,0.7046991,42028.0,42019.0,0.00129763]
[1642646975989,0.007,42024.0,42019.0,0.02829763]
[1642646976188,0.01376596,42024.0,42019.0,0.02829763]